[Event "December 19 Late 2023"]
[Site "https://www.chess.com"]
[Date "2023.12.19"]
[Round "6"]
[White "Argandona Riveiro, Inigo"]
[Black "Lizak, Peter"]
[Result "0-1"]
[Board "80"]
[TimeControl "180+1"]
[WhiteFideId "2212072"]
[BlackFideId "731595"]
[WhiteElo "2391"]
[BlackElo "2420"]
[WhiteTeam "ESP"]
[BlackTeam "HUN"]
[WhiteClock "0:00:07"]
[BlackClock "0:00:20"]

1. Nf3 {[%clk 0:03:00]}  d5 {[%clk 0:02:59]} 2. c4 {[%clk 0:03:01]}  d4 {[%clk 0:02:59]} 3. e3 {[%clk 0:03:02]}  c5 {[%clk 0:02:59]} 4. b4 {[%clk 0:03:02]}  Nf6 {[%clk 0:02:51]} 5. bxc5 {[%clk 0:03:02]}  Nc6 {[%clk 0:02:50]} 6. Bb2 {[%clk 0:03:00]}  e5 {[%clk 0:02:50]} 7. exd4 {[%clk 0:02:55]}  exd4 {[%clk 0:02:50]} 8. d3 {[%clk 0:02:52]}  Bxc5 {[%clk 0:02:50]} 9. Be2 {[%clk 0:02:52]}  O-O {[%clk 0:02:47]} 10. O-O {[%clk 0:02:52]}  Bf5 {[%clk 0:02:47]} 11. Nbd2 {[%clk 0:02:52]}  h6 {[%clk 0:02:46]} 12. Nb3 {[%clk 0:02:52]}  b6 {[%clk 0:02:45]} 13. Nxc5 {[%clk 0:02:51]}  bxc5 {[%clk 0:02:45]} 14. Ba3 {[%clk 0:02:50]}  Qd6 {[%clk 0:02:42]} 15. Re1 {[%clk 0:02:48]}  Rfe8 {[%clk 0:02:42]} 16. Bf1 {[%clk 0:02:48]}  Bg4 {[%clk 0:02:42]} 17. Rxe8+ {[%clk 0:02:45]}  Rxe8 {[%clk 0:02:41]} 18. h3 {[%clk 0:02:45]}  Bh5 {[%clk 0:02:38]} 19. g4 {[%clk 0:02:44]}  Nxg4 {[%clk 0:02:27]} 20. hxg4 {[%clk 0:02:45]}  Bxg4 {[%clk 0:02:28]} 21. Bg2 {[%clk 0:02:36]}  Ne5 {[%clk 0:02:11]} 22. Qa4 {[%clk 0:02:01]}  Bd7 {[%clk 0:01:13]} 23. Qd1 {[%clk 0:01:21]}  Bc6 {[%clk 0:01:01]} 24. Kf1 {[%clk 0:01:02]}  Re6 {[%clk 0:00:54]} 25. Nh4 {[%clk 0:00:49]}  Rf6 {[%clk 0:00:45]} 26. Qe2 {[%clk 0:00:25]}  Bxg2+ {[%clk 0:00:41]} 27. Nxg2 {[%clk 0:00:25]}  Nf3 {[%clk 0:00:34]} 28. Re1 {[%clk 0:00:20]}  Nxe1 {[%clk 0:00:26]} 29. Qe8+ {[%clk 0:00:17]}  Kh7 {[%clk 0:00:26]} 30. Qxe1 {[%clk 0:00:18]}  Qh2 {[%clk 0:00:24]} 31. Qe4+ {[%clk 0:00:16]}  g6 {[%clk 0:00:25]} 32. Ne1 {[%clk 0:00:15]}  Qh3+ {[%clk 0:00:23]} 33. Ke2 {[%clk 0:00:14]}  Re6 {[%clk 0:00:23]} 34. Nf3 {[%clk 0:00:11]}  Rxe4+ {[%clk 0:00:21]} 35. dxe4 {[%clk 0:00:07]}  Qg4 {[%clk 0:00:20]} 0-1

[Event "December 19 Late 2023"]
[Site "https://www.chess.com"]
[Date "2023.12.19"]
[Round "6"]
[White "Kokoszczynski, Jan"]
[Black "Kovacsy, Barnabas"]
[Result "1/2-1/2"]
[Board "81"]
[TimeControl "180+1"]
[WhiteFideId "1174460"]
[BlackFideId "769290"]
[WhiteElo "2266"]
[BlackElo "2130"]
[WhiteTeam "POL"]
[BlackTeam "HUN"]
[WhiteClock "0:00:04"]
[BlackClock "0:00:04"]

1. d4 {[%clk 0:03:00]}  Nf6 {[%clk 0:02:59]} 2. Nf3 {[%clk 0:03:01]}  g6 {[%clk 0:02:58]} 3. Nc3 {[%clk 0:03:01]}  d5 {[%clk 0:02:57]} 4. Bf4 {[%clk 0:03:01]}  Bg7 {[%clk 0:02:56]} 5. Nb5 {[%clk 0:03:01]}  Na6 {[%clk 0:02:56]} 6. e3 {[%clk 0:03:01]}  O-O {[%clk 0:02:55]} 7. h3 {[%clk 0:03:02]}  Bf5 {[%clk 0:02:51]} 8. Be2 {[%clk 0:02:43]}  Ne4 {[%clk 0:02:46]} 9. O-O {[%clk 0:02:41]}  c6 {[%clk 0:02:45]} 10. Nc3 {[%clk 0:02:39]}  Nxc3 {[%clk 0:02:40]} 11. bxc3 {[%clk 0:02:39]}  Nc7 {[%clk 0:02:39]} 12. c4 {[%clk 0:02:40]}  dxc4 {[%clk 0:02:33]} 13. Bxc4 {[%clk 0:02:40]}  Nd5 {[%clk 0:02:33]} 14. Be5 {[%clk 0:02:37]}  b5 {[%clk 0:02:25]} 15. Bd3 {[%clk 0:02:25]}  Bxd3 {[%clk 0:02:18]} 16. Qxd3 {[%clk 0:02:01]}  Rc8 {[%clk 0:01:57]} 17. Bxg7 {[%clk 0:01:59]}  Kxg7 {[%clk 0:01:58]} 18. c4 {[%clk 0:01:59]}  bxc4 {[%clk 0:01:41]} 19. Qxc4 {[%clk 0:02:00]}  Qd6 {[%clk 0:01:40]} 20. Rfc1 {[%clk 0:01:58]}  Rc7 {[%clk 0:01:40]} 21. Qa4 {[%clk 0:01:34]}  Nb6 {[%clk 0:01:37]} 22. Qa5 {[%clk 0:01:28]}  Rfc8 {[%clk 0:01:31]} 23. Rc5 {[%clk 0:01:18]}  Nd7 {[%clk 0:01:27]} 24. Rc3 {[%clk 0:01:17]}  c5 {[%clk 0:01:11]} 25. Rac1 {[%clk 0:01:16]}  e5 {[%clk 0:01:08]} 26. dxe5 {[%clk 0:01:06]}  Nxe5 {[%clk 0:01:06]} 27. Nxe5 {[%clk 0:01:06]}  Qxe5 {[%clk 0:01:06]} 28. Rc4 {[%clk 0:01:03]}  h5 {[%clk 0:01:01]} 29. Qd2 {[%clk 0:00:55]}  Qe6 {[%clk 0:00:56]} 30. Qc3+ {[%clk 0:00:54]}  Qf6 {[%clk 0:00:56]} 31. Qa3 {[%clk 0:00:51]}  Qe7 {[%clk 0:00:50]} 32. h4 {[%clk 0:00:45]}  Qe5 {[%clk 0:00:46]} 33. g3 {[%clk 0:00:41]}  Qe6 {[%clk 0:00:40]} 34. e4 {[%clk 0:00:30]}  Qd6 {[%clk 0:00:33]} 35. Qc3+ {[%clk 0:00:29]}  Kh7 {[%clk 0:00:31]} 36. e5 {[%clk 0:00:29]}  Qe7 {[%clk 0:00:31]} 37. Re1 {[%clk 0:00:26]}  Qe6 {[%clk 0:00:28]} 38. Rf4 {[%clk 0:00:26]}  Rc6 {[%clk 0:00:25]} 39. Qf3 {[%clk 0:00:22]}  R8c7 {[%clk 0:00:24]} 40. Rf6 {[%clk 0:00:18]}  Qd7 {[%clk 0:00:23]} 41. Rf4 {[%clk 0:00:14]}  c4 {[%clk 0:00:19]} 42. Qc3 {[%clk 0:00:14]}  Qe6 {[%clk 0:00:18]} 43. Re3 {[%clk 0:00:12]}  Rc5 {[%clk 0:00:17]} 44. Rfe4 {[%clk 0:00:10]}  Kg7 {[%clk 0:00:17]} 45. Rf3 {[%clk 0:00:10]}  R7c6 {[%clk 0:00:13]} 46. Rf6 {[%clk 0:00:07]}  Qe7 {[%clk 0:00:14]} 47. Rxc6 {[%clk 0:00:07]}  Rxc6 {[%clk 0:00:15]} 48. e6+ {[%clk 0:00:08]}  f6 {[%clk 0:00:14]} 49. g4 {[%clk 0:00:04]}  hxg4 {[%clk 0:00:11]} 50. Rxg4 {[%clk 0:00:05]}  Qxe6 {[%clk 0:00:11]} 51. Rg3 {[%clk 0:00:04]}  Qd5 {[%clk 0:00:09]} 52. Qe3 {[%clk 0:00:03]}  Qd1+ {[%clk 0:00:08]} 53. Kh2 {[%clk 0:00:03]}  Qd6 {[%clk 0:00:08]} 54. Qe8 {[%clk 0:00:02]}  c3 {[%clk 0:00:07]} 55. Qxg6+ {[%clk 0:00:03]}  Kf8 {[%clk 0:00:07]} 56. Qg8+ {[%clk 0:00:03]}  Ke7 {[%clk 0:00:07]} 57. Qg7+ {[%clk 0:00:02]}  Kd8 {[%clk 0:00:06]} 58. Qh8+ {[%clk 0:00:02]}  Kc7 {[%clk 0:00:07]} 59. Kg2 {[%clk 0:00:02]}  Qd5+ {[%clk 0:00:07]} 60. Kh3 {[%clk 0:00:02]}  c2 {[%clk 0:00:07]} 61. Rg7+ {[%clk 0:00:02]}  Kb6 {[%clk 0:00:07]} 62. Qb8+ {[%clk 0:00:03]}  Ka6 {[%clk 0:00:08]} 63. Rg4 {[%clk 0:00:03]}  Qf3+ {[%clk 0:00:07]} 64. Rg3 {[%clk 0:00:02]}  Qh1+ {[%clk 0:00:07]} 65. Kg4 {[%clk 0:00:03]}  Qe4+ {[%clk 0:00:08]} 66. Kh3 {[%clk 0:00:03]}  Qh1+ {[%clk 0:00:07]} 67. Kg4 {[%clk 0:00:03]}  Qe4+ {[%clk 0:00:03]} 68. Kh3 {[%clk 0:00:04]}  Qh1+ {[%clk 0:00:04]} 1/2-1/2

[Event "December 19 Late 2023"]
[Site "https://www.chess.com"]
[Date "2023.12.19"]
[Round "6"]
[White "Novak, Ratko"]
[Black "Colas, Joshua"]
[Result "1-0"]
[Board "82"]
[TimeControl "180+1"]
[WhiteFideId "14511827"]
[BlackFideId "2044447"]
[WhiteElo "2036"]
[BlackElo "2347"]
[WhiteTeam "CRO"]
[BlackTeam "USA"]
[WhiteClock "0:02:05"]
[BlackClock "0:02:05"]

1. d4 {[%clk 0:03:00]}  d5 {[%clk 0:02:59]} 2. c4 {[%clk 0:03:01]}  e6 {[%clk 0:02:58]} 3. cxd5 {[%clk 0:03:01]}  exd5 {[%clk 0:02:56]} 4. Nc3 {[%clk 0:03:02]}  c6 {[%clk 0:02:56]} 5. f3 {[%clk 0:03:02]}  Nf6 {[%clk 0:02:54]} 6. e4 {[%clk 0:03:02]}  dxe4 {[%clk 0:02:54]} 7. fxe4 {[%clk 0:03:03]}  Bb4 {[%clk 0:02:54]} 8. Qd3 {[%clk 0:03:03]}  O-O {[%clk 0:02:54]} 9. Be2 {[%clk 0:03:04]}  Re8 {[%clk 0:02:50]} 10. e5 {[%clk 0:03:04]}  Nd5 {[%clk 0:02:50]} 11. Nf3 {[%clk 0:03:04]}  b6 {[%clk 0:02:45]} 12. Ng5 {[%clk 0:03:01]}  g6 {[%clk 0:02:44]} 13. O-O {[%clk 0:02:53]}  f6 {[%clk 0:02:37]} 14. Nxd5 {[%clk 0:02:41]}  Qxd5 {[%clk 0:02:27]} 15. exf6 {[%clk 0:02:35]}  Bf5 {[%clk 0:02:27]} 16. f7+ {[%clk 0:02:33]}  Qxf7 {[%clk 0:02:27]} 17. Nxf7 {[%clk 0:02:26]}  Bxd3 {[%clk 0:02:27]} 18. Bxd3 {[%clk 0:02:26]}  Nd7 {[%clk 0:02:28]} 19. Bh6 {[%clk 0:02:23]}  c5 {[%clk 0:02:21]} 20. Bc4 {[%clk 0:02:22]}  b5 {[%clk 0:02:19]} 21. Bxb5 {[%clk 0:02:21]}  Re7 {[%clk 0:02:17]} 22. Bg5 {[%clk 0:02:04]}  Rxf7 {[%clk 0:02:05]} 23. Bc4 {[%clk 0:02:05]} 1-0

[Event "December 19 Late 2023"]
[Site "https://www.chess.com"]
[Date "2023.12.19"]
[Round "6"]
[White "Rodriguez Fontecha, Marcos"]
[Black "Xie, Bryan"]
[Result "1-0"]
[Board "83"]
[TimeControl "180+1"]
[WhiteFideId "2256576"]
[BlackFideId "30941296"]
[WhiteElo "2249"]
[BlackElo "2033"]
[WhiteTeam "ESP"]
[BlackTeam "USA"]
[WhiteClock "0:01:01"]
[BlackClock "0:01:37"]

1. d4 {[%clk 0:03:00]}  Nf6 {[%clk 0:02:54]} 2. Nf3 {[%clk 0:03:00]}  e6 {[%clk 0:02:50]} 3. Bf4 {[%clk 0:03:00]}  b6 {[%clk 0:02:49]} 4. e3 {[%clk 0:03:00]}  Bb7 {[%clk 0:02:50]} 5. Bd3 {[%clk 0:03:01]}  Be7 {[%clk 0:02:50]} 6. O-O {[%clk 0:03:01]}  O-O {[%clk 0:02:50]} 7. h3 {[%clk 0:03:02]}  c5 {[%clk 0:02:49]} 8. a4 {[%clk 0:03:01]}  d6 {[%clk 0:02:49]} 9. Qe2 {[%clk 0:03:00]}  Nbd7 {[%clk 0:02:50]} 10. c4 {[%clk 0:03:00]}  Qc7 {[%clk 0:02:49]} 11. Nc3 {[%clk 0:03:00]}  e5 {[%clk 0:02:50]} 12. dxe5 {[%clk 0:02:57]}  dxe5 {[%clk 0:02:51]} 13. Bh2 {[%clk 0:02:57]}  Rad8 {[%clk 0:02:50]} 14. Rfd1 {[%clk 0:02:56]}  Qb8 {[%clk 0:02:50]} 15. Bf5 {[%clk 0:02:42]}  Qa8 {[%clk 0:02:43]} 16. Rd2 {[%clk 0:02:35]}  e4 {[%clk 0:02:23]} 17. Ne1 {[%clk 0:02:09]}  g6 {[%clk 0:02:22]} 18. Bg4 {[%clk 0:02:07]}  Nxg4 {[%clk 0:02:21]} 19. hxg4 {[%clk 0:02:06]}  Nf6 {[%clk 0:02:18]} 20. Rad1 {[%clk 0:01:59]}  Rxd2 {[%clk 0:02:16]} 21. Rxd2 {[%clk 0:02:00]}  Rd8 {[%clk 0:02:17]} 22. Bc7 {[%clk 0:01:42]}  Rxd2 {[%clk 0:02:15]} 23. Qxd2 {[%clk 0:01:43]}  Nxg4 {[%clk 0:02:15]} 24. Qd7 {[%clk 0:01:42]}  Bf6 {[%clk 0:02:12]} 25. Qxg4 {[%clk 0:01:40]}  Bxc3 {[%clk 0:02:10]} 26. bxc3 {[%clk 0:01:40]}  Qe8 {[%clk 0:02:11]} 27. Qf4 {[%clk 0:01:29]}  Qxa4 {[%clk 0:01:59]} 28. Be5 {[%clk 0:01:12]}  f5 {[%clk 0:01:52]} 29. Qg5 {[%clk 0:01:04]}  Qd7 {[%clk 0:01:37]} 30. Qf6 {[%clk 0:01:01]} 1-0

[Event "December 19 Late 2023"]
[Site "https://www.chess.com"]
[Date "2023.12.19"]
[Round "6"]
[White "Mkrtchyan, Mikayel"]
[Black "Nunez V, Gustavo Eduardo"]
[Result "1-0"]
[Board "84"]
[TimeControl "180+1"]
[WhiteFideId "13305743"]
[BlackFideId "4403690"]
[WhiteElo "2033"]
[BlackElo "2167"]
[WhiteTeam "ARM"]
[BlackTeam "COL"]
[WhiteClock "0:00:58"]
[BlackClock "0:00:55"]

1. e4 {[%clk 0:03:00]}  c5 {[%clk 0:02:58]} 2. Nf3 {[%clk 0:03:00]}  Nc6 {[%clk 0:02:59]} 3. Bb5 {[%clk 0:02:59]}  g6 {[%clk 0:02:58]} 4. Bxc6 {[%clk 0:02:59]}  dxc6 {[%clk 0:02:59]} 5. d3 {[%clk 0:02:59]}  Bg7 {[%clk 0:02:59]} 6. h3 {[%clk 0:03:00]}  e5 {[%clk 0:02:59]} 7. Be3 {[%clk 0:02:56]}  b6 {[%clk 0:02:58]} 8. a4 {[%clk 0:02:54]}  a5 {[%clk 0:02:58]} 9. Nbd2 {[%clk 0:02:49]}  Qc7 {[%clk 0:02:54]} 10. O-O {[%clk 0:02:47]}  h6 {[%clk 0:02:53]} 11. Nc4 {[%clk 0:02:46]}  Be6 {[%clk 0:02:53]} 12. Nfd2 {[%clk 0:02:41]}  Nf6 {[%clk 0:02:52]} 13. f4 {[%clk 0:02:40]}  Nd7 {[%clk 0:02:48]} 14. Qe2 {[%clk 0:02:22]}  O-O {[%clk 0:02:44]} 15. f5 {[%clk 0:02:21]}  Bxc4 {[%clk 0:02:43]} 16. Nxc4 {[%clk 0:02:16]}  g5 {[%clk 0:02:43]} 17. c3 {[%clk 0:01:58]}  Rfe8 {[%clk 0:02:38]} 18. Rfb1 {[%clk 0:01:56]}  Bf8 {[%clk 0:02:36]} 19. h4 {[%clk 0:01:50]}  f6 {[%clk 0:02:34]} 20. Qh5 {[%clk 0:01:49]}  Qd8 {[%clk 0:02:10]} 21. hxg5 {[%clk 0:01:46]}  fxg5 {[%clk 0:02:08]} 22. Qg6+ {[%clk 0:01:43]}  Bg7 {[%clk 0:02:00]} 23. Qxc6 {[%clk 0:01:33]}  Rc8 {[%clk 0:01:59]} 24. Qd5+ {[%clk 0:01:30]}  Kh8 {[%clk 0:01:59]} 25. Nd6 {[%clk 0:01:30]}  Nf6 {[%clk 0:01:47]} 26. Nf7+ {[%clk 0:01:27]}  Kh7 {[%clk 0:01:43]} 27. Qxd8 {[%clk 0:01:25]}  Rcxd8 {[%clk 0:01:42]} 28. Nxd8 {[%clk 0:01:25]}  Rxd8 {[%clk 0:01:43]} 29. Rd1 {[%clk 0:01:24]}  Bf8 {[%clk 0:01:42]} 30. Kf2 {[%clk 0:01:22]}  Kg7 {[%clk 0:01:34]} 31. Kf3 {[%clk 0:01:19]}  Kf7 {[%clk 0:01:31]} 32. g4 {[%clk 0:01:15]}  Be7 {[%clk 0:01:25]} 33. d4 {[%clk 0:01:14]}  exd4 {[%clk 0:01:23]} 34. cxd4 {[%clk 0:01:15]}  cxd4 {[%clk 0:01:21]} 35. Bxd4 {[%clk 0:01:06]}  Nd7 {[%clk 0:01:16]} 36. e5 {[%clk 0:01:04]}  Ke8 {[%clk 0:01:04]} 37. Rac1 {[%clk 0:01:03]}  Bc5 {[%clk 0:01:03]} 38. Bxc5 {[%clk 0:01:03]}  Nxc5 {[%clk 0:01:00]} 39. Rxd8+ {[%clk 0:01:02]}  Kxd8 {[%clk 0:01:01]} 40. Rh1 {[%clk 0:00:59]}  Nxa4 {[%clk 0:01:00]} 41. Rxh6 {[%clk 0:00:58]}  b5 {[%clk 0:00:59]} 42. f6 {[%clk 0:00:56]}  Nxb2 {[%clk 0:00:58]} 43. e6 {[%clk 0:00:56]}  Nc4 {[%clk 0:00:57]} 44. Rh8+ {[%clk 0:00:56]}  Kc7 {[%clk 0:00:57]} 45. e7 {[%clk 0:00:55]}  Nd6 {[%clk 0:00:53]} 46. e8=Q {[%clk 0:00:55]}  Nxe8 {[%clk 0:00:54]} 47. Rxe8 {[%clk 0:00:55]}  a4 {[%clk 0:00:54]} 48. f7 {[%clk 0:00:56]}  a3 {[%clk 0:00:55]} 49. f8=Q {[%clk 0:00:56]}  a2 {[%clk 0:00:55]} 50. Qc5+ {[%clk 0:00:56]}  Kd7 {[%clk 0:00:55]} 51. Re7+ {[%clk 0:00:57]}  Kd8 {[%clk 0:00:55]} 52. Qc7# {[%clk 0:00:58]} 1-0

[Event "December 19 Late 2023"]
[Site "https://www.chess.com"]
[Date "2023.12.19"]
[Round "6"]
[White "Carrasco Miranda, Andres"]
[Black "Tifferet, Shakked"]
[Result "0-1"]
[Board "85"]
[TimeControl "180+1"]
[WhiteFideId "3405990"]
[BlackFideId "2811529"]
[WhiteElo "2183"]
[BlackElo "2142"]
[WhiteTeam "CHI"]
[BlackTeam "ISR"]
[WhiteClock "0:00:49"]
[BlackClock "0:02:12"]

1. d4 {[%clk 0:03:00]}  d5 {[%clk 0:02:57]} 2. c4 {[%clk 0:03:00]}  c6 {[%clk 0:02:57]} 3. Nf3 {[%clk 0:03:01]}  Nf6 {[%clk 0:02:58]} 4. e3 {[%clk 0:02:59]}  a6 {[%clk 0:02:58]} 5. Bd3 {[%clk 0:02:57]}  g6 {[%clk 0:02:55]} 6. cxd5 {[%clk 0:02:51]}  cxd5 {[%clk 0:02:55]} 7. Nc3 {[%clk 0:02:52]}  Bg7 {[%clk 0:02:53]} 8. O-O {[%clk 0:02:51]}  O-O {[%clk 0:02:54]} 9. Bd2 {[%clk 0:02:49]}  Nc6 {[%clk 0:02:54]} 10. Rc1 {[%clk 0:02:48]}  Bg4 {[%clk 0:02:53]} 11. h3 {[%clk 0:02:48]}  Bxf3 {[%clk 0:02:53]} 12. Qxf3 {[%clk 0:02:48]}  e5 {[%clk 0:02:54]} 13. dxe5 {[%clk 0:02:45]}  Nxe5 {[%clk 0:02:55]} 14. Qe2 {[%clk 0:02:46]}  Nxd3 {[%clk 0:02:45]} 15. Qxd3 {[%clk 0:02:47]}  Qb6 {[%clk 0:02:43]} 16. Na4 {[%clk 0:02:42]}  Qb5 {[%clk 0:02:40]} 17. Qb3 {[%clk 0:01:13]}  Ne4 {[%clk 0:02:35]} 18. Bb4 {[%clk 0:01:01]}  Rfc8 {[%clk 0:02:30]} 19. f3 {[%clk 0:00:54]}  Ng3 {[%clk 0:02:24]} 20. Rfd1 {[%clk 0:00:49]}  Ne2+ {[%clk 0:02:12]} 0-1

[Event "December 19 Late 2023"]
[Site "https://www.chess.com"]
[Date "2023.12.19"]
[Round "6"]
[White "Skibbe, Willi"]
[Black "Hasanagic, Anel"]
[Result "0-1"]
[Board "86"]
[TimeControl "180+1"]
[WhiteFideId "4682190"]
[BlackFideId "14605791"]
[WhiteElo "2380"]
[BlackElo "2209"]
[WhiteTeam "GER"]
[BlackTeam "SLO"]
[WhiteClock "0:00:07"]
[BlackClock "0:00:11"]

1. e4 {[%clk 0:03:00]}  c6 {[%clk 0:02:59]} 2. Nc3 {[%clk 0:02:58]}  d5 {[%clk 0:02:59]} 3. Nf3 {[%clk 0:02:58]}  Bg4 {[%clk 0:02:57]} 4. h3 {[%clk 0:02:56]}  Bxf3 {[%clk 0:02:57]} 5. Qxf3 {[%clk 0:02:55]}  Nf6 {[%clk 0:02:58]} 6. e5 {[%clk 0:02:52]}  Nfd7 {[%clk 0:02:58]} 7. d4 {[%clk 0:02:51]}  e6 {[%clk 0:02:58]} 8. Ne2 {[%clk 0:02:13]}  c5 {[%clk 0:02:56]} 9. c3 {[%clk 0:02:13]}  Nc6 {[%clk 0:02:56]} 10. Qd3 {[%clk 0:01:48]}  Qb6 {[%clk 0:02:40]} 11. f4 {[%clk 0:01:41]}  cxd4 {[%clk 0:02:22]} 12. Nxd4 {[%clk 0:01:40]}  Nxd4 {[%clk 0:02:19]} 13. Qxd4 {[%clk 0:01:40]}  Bc5 {[%clk 0:02:11]} 14. Qd2 {[%clk 0:01:40]}  f6 {[%clk 0:02:09]} 15. exf6 {[%clk 0:01:37]}  gxf6 {[%clk 0:02:07]} 16. Bd3 {[%clk 0:01:36]}  Rg8 {[%clk 0:02:05]} 17. Bxh7 {[%clk 0:01:31]}  Rg7 {[%clk 0:02:04]} 18. Bd3 {[%clk 0:01:31]}  O-O-O {[%clk 0:02:04]} 19. b4 {[%clk 0:01:25]}  Bd6 {[%clk 0:02:02]} 20. Qe3 {[%clk 0:01:23]}  Qc7 {[%clk 0:01:50]} 21. Bd2 {[%clk 0:01:17]}  e5 {[%clk 0:01:36]} 22. g4 {[%clk 0:01:09]}  exf4 {[%clk 0:01:16]} 23. Qxa7 {[%clk 0:00:57]}  Re8+ {[%clk 0:00:55]} 24. Kd1 {[%clk 0:00:47]}  Ne5 {[%clk 0:00:48]} 25. Bf5+ {[%clk 0:00:44]}  Kd8 {[%clk 0:00:48]} 26. Qa5 {[%clk 0:00:18]}  Qxa5 {[%clk 0:00:43]} 27. bxa5 {[%clk 0:00:19]}  Nc4 {[%clk 0:00:43]} 28. Kc2 {[%clk 0:00:14]}  Nxa5 {[%clk 0:00:42]} 29. Raf1 {[%clk 0:00:13]}  Nc4 {[%clk 0:00:41]} 30. Bxf4 {[%clk 0:00:13]}  Re2+ {[%clk 0:00:35]} 31. Kb1 {[%clk 0:00:13]}  Ba3 {[%clk 0:00:17]} 32. Rd1 {[%clk 0:00:09]}  Rb2+ {[%clk 0:00:14]} 33. Ka1 {[%clk 0:00:10]}  Rf2 {[%clk 0:00:14]} 34. Rxd5+ {[%clk 0:00:10]}  Ke8 {[%clk 0:00:14]} 35. Re1+ {[%clk 0:00:09]}  Re7 {[%clk 0:00:14]} 36. Rxe7+ {[%clk 0:00:07]}  Kxe7 {[%clk 0:00:15]} 37. Rd7+ {[%clk 0:00:08]}  Ke8 {[%clk 0:00:15]} 38. Kb1 {[%clk 0:00:08]}  Rb2+ {[%clk 0:00:12]} 39. Ka1 {[%clk 0:00:09]}  Rf2 {[%clk 0:00:13]} 40. Kb1 {[%clk 0:00:09]}  Rxf4 {[%clk 0:00:13]} 41. Kc2 {[%clk 0:00:08]}  Rf2+ {[%clk 0:00:12]} 42. Kb3 {[%clk 0:00:08]}  b5 {[%clk 0:00:12]} 43. Rb7 {[%clk 0:00:07]}  Rb2# {[%clk 0:00:11]} 0-1

[Event "December 19 Late 2023"]
[Site "https://www.chess.com"]
[Date "2023.12.19"]
[Round "6"]
[White "Molenda, Marcin"]
[Black "Pakleza, Zbigniew"]
[Result "0-1"]
[Board "88"]
[TimeControl "180+1"]
[WhiteFideId "1173065"]
[BlackFideId "1119290"]
[WhiteElo "2286"]
[BlackElo "2410"]
[WhiteTeam "POL"]
[BlackTeam "POL"]
[WhiteClock "0:00:00"]
[BlackClock "0:00:02"]

1. e4 {[%clk 0:03:00]}  a6 {[%clk 0:03:00]} 2. a3 {[%clk 0:02:56]}  h6 {[%clk 0:03:00]} 3. h3 {[%clk 0:02:56]}  b6 {[%clk 0:03:01]} 4. b3 {[%clk 0:02:55]}  c6 {[%clk 0:03:02]} 5. c3 {[%clk 0:02:56]}  d6 {[%clk 0:03:02]} 6. d3 {[%clk 0:02:56]}  e6 {[%clk 0:03:03]} 7. Ra2 {[%clk 0:02:55]}  g6 {[%clk 0:03:03]} 8. g3 {[%clk 0:02:55]}  Ne7 {[%clk 0:03:03]} 9. Ne2 {[%clk 0:02:55]}  f6 {[%clk 0:03:04]} 10. f3 {[%clk 0:02:56]}  Bg7 {[%clk 0:03:03]} 11. Bg2 {[%clk 0:02:54]}  Bb7 {[%clk 0:03:03]} 12. O-O {[%clk 0:02:54]}  Nd7 {[%clk 0:03:03]} 13. d4 {[%clk 0:02:41]}  O-O {[%clk 0:02:57]} 14. Nf4 {[%clk 0:02:34]}  Kf7 {[%clk 0:02:58]} 15. c4 {[%clk 0:02:29]}  e5 {[%clk 0:02:56]} 16. Ne2 {[%clk 0:02:28]}  Kg8 {[%clk 0:02:50]} 17. Be3 {[%clk 0:02:14]}  d5 {[%clk 0:02:45]} 18. Nbc3 {[%clk 0:02:08]}  dxe4 {[%clk 0:02:17]} 19. Nxe4 {[%clk 0:02:02]}  Nf5 {[%clk 0:02:09]} 20. Bf2 {[%clk 0:01:58]}  exd4 {[%clk 0:02:09]} 21. Nxd4 {[%clk 0:01:58]}  Nxd4 {[%clk 0:02:05]} 22. Qxd4 {[%clk 0:01:48]}  c5 {[%clk 0:02:05]} 23. Qe3 {[%clk 0:01:40]}  Qe7 {[%clk 0:01:50]} 24. f4 {[%clk 0:01:29]}  Rae8 {[%clk 0:01:26]} 25. Re1 {[%clk 0:01:21]}  f5 {[%clk 0:01:17]} 26. Nd2 {[%clk 0:01:07]}  Qxe3 {[%clk 0:01:04]} 27. Rxe3 {[%clk 0:01:04]}  Bxg2 {[%clk 0:01:05]} 28. Kxg2 {[%clk 0:01:04]}  Nf6 {[%clk 0:01:00]} 29. Kf3 {[%clk 0:00:57]}  g5 {[%clk 0:00:52]} 30. b4 {[%clk 0:00:47]}  Rd8 {[%clk 0:00:23]} 31. bxc5 {[%clk 0:00:45]}  bxc5 {[%clk 0:00:23]} 32. Nb3 {[%clk 0:00:35]}  Ne4 {[%clk 0:00:17]} 33. fxg5 {[%clk 0:00:27]}  hxg5 {[%clk 0:00:18]} 34. Kg2 {[%clk 0:00:18]}  Rfe8 {[%clk 0:00:14]} 35. Rae2 {[%clk 0:00:16]}  Rf8 {[%clk 0:00:08]} 36. Be1 {[%clk 0:00:12]}  Rd1 {[%clk 0:00:07]} 37. g4 {[%clk 0:00:12]}  f4 {[%clk 0:00:06]} 38. Rxe4 {[%clk 0:00:12]}  f3+ {[%clk 0:00:07]} 39. Kf2 {[%clk 0:00:11]}  fxe2+ {[%clk 0:00:08]} 40. Kxe2 {[%clk 0:00:12]}  Rb1 {[%clk 0:00:07]} 41. Nxc5 {[%clk 0:00:12]}  Rb2+ {[%clk 0:00:06]} 42. Kd1 {[%clk 0:00:04]}  Ra2 {[%clk 0:00:05]} 43. Ne6 {[%clk 0:00:04]}  Re8 {[%clk 0:00:04]} 44. Nxg5 {[%clk 0:00:03]}  Rd8+ {[%clk 0:00:04]} 45. Kc1 {[%clk 0:00:00]}  Rb8 {[%clk 0:00:02]} 0-1

[Event "December 19 Late 2023"]
[Site "https://www.chess.com"]
[Date "2023.12.19"]
[Round "6"]
[White "Essing, Arnold"]
[Black "Rose, Felix"]
[Result "1-0"]
[Board "89"]
[TimeControl "180+1"]
[WhiteFideId "4619862"]
[BlackFideId "5105722"]
[WhiteElo "2257"]
[BlackElo "2039"]
[WhiteTeam "GER"]
[BlackTeam "MEX"]
[WhiteClock "0:01:04"]
[BlackClock "0:01:21"]

1. d4 {[%clk 0:03:00]}  d5 {[%clk 0:02:58]} 2. Nf3 {[%clk 0:03:01]}  Nf6 {[%clk 0:02:58]} 3. c4 {[%clk 0:03:01]}  e6 {[%clk 0:02:58]} 4. Nc3 {[%clk 0:03:01]}  Be7 {[%clk 0:02:59]} 5. Bg5 {[%clk 0:03:01]}  Nbd7 {[%clk 0:02:58]} 6. e3 {[%clk 0:03:01]}  h6 {[%clk 0:02:59]} 7. Bh4 {[%clk 0:03:01]}  O-O {[%clk 0:02:59]} 8. Bd3 {[%clk 0:03:00]}  c5 {[%clk 0:02:59]} 9. O-O {[%clk 0:02:57]}  b6 {[%clk 0:02:59]} 10. Qe2 {[%clk 0:02:55]}  Bb7 {[%clk 0:02:57]} 11. Rfd1 {[%clk 0:02:55]}  Ne4 {[%clk 0:02:56]} 12. Bg3 {[%clk 0:02:51]}  cxd4 {[%clk 0:02:54]} 13. exd4 {[%clk 0:02:46]}  Ndf6 {[%clk 0:02:52]} 14. Ne5 {[%clk 0:02:40]}  Nxg3 {[%clk 0:02:46]} 15. hxg3 {[%clk 0:02:39]}  dxc4 {[%clk 0:02:46]} 16. Bxc4 {[%clk 0:02:39]}  Nd5 {[%clk 0:02:45]} 17. Nxd5 {[%clk 0:02:27]}  Bxd5 {[%clk 0:02:45]} 18. Ba6 {[%clk 0:02:16]}  Qd6 {[%clk 0:02:25]} 19. a3 {[%clk 0:01:56]}  Rad8 {[%clk 0:02:24]} 20. Rac1 {[%clk 0:01:54]}  Bg5 {[%clk 0:02:13]} 21. f4 {[%clk 0:01:51]}  Bf6 {[%clk 0:02:12]} 22. b4 {[%clk 0:01:43]}  Bb3 {[%clk 0:02:06]} 23. Rd2 {[%clk 0:01:34]}  Bd5 {[%clk 0:01:56]} 24. Kh2 {[%clk 0:01:19]}  g6 {[%clk 0:01:53]} 25. Qd3 {[%clk 0:01:13]}  h5 {[%clk 0:01:45]} 26. Rdc2 {[%clk 0:01:08]}  Kg7 {[%clk 0:01:42]} 27. Rc7 {[%clk 0:01:07]}  Ba8 {[%clk 0:01:21]} 28. Qxg6+ {[%clk 0:01:04]} 1-0